[Event "Early-Titled-Tuesday-Blitz-May-28-2024"]
[Site "Chess.com"]
[Date "2024.05.28"]
[Round "1"]
[White "YouJustFoundYourGodfather"]
[Black "simaopdias"]
[Result "1-0"]
[WhiteElo "2596"]
[BlackElo "2228"]
[TimeControl "180+1"]
[EndTime "8:06:29 PDT"]
[Termination "YouJustFoundYourGodfather won by checkmate"]

1. d4 {[%clk 0:02:49]} 1... Nf6 {[%clk 0:02:59.3]} 2. Bg5 {[%clk 0:02:49.4]}
2... Ne4 {[%clk 0:02:58.2]} 3. Bf4 {[%clk 0:02:48.6]} 3... d5 {[%clk 0:02:58.2]}
4. Nd2 {[%clk 0:02:48.5]} 4... Nxd2 {[%clk 0:02:58]} 5. Qxd2 {[%clk 0:02:48.6]}
5... Nd7 {[%clk 0:02:58.9]} 6. e3 {[%clk 0:02:49]} 6... Nf6 {[%clk 0:02:58.8]}
7. Nf3 {[%clk 0:02:48.9]} 7... Bf5 {[%clk 0:02:54.6]} 8. Bd3 {[%clk 0:02:48.6]}
8... Bxd3 {[%clk 0:02:54.6]} 9. Qxd3 {[%clk 0:02:47.7]} 9... c6 {[%clk
0:02:55.5]} 10. O-O {[%clk 0:02:47.4]} 10... e6 {[%clk 0:02:55.8]} 11. c4 {[%clk
0:02:48]} 11... Bd6 {[%clk 0:02:55.8]} 12. Ne5 {[%clk 0:02:46.8]} 12... O-O
{[%clk 0:02:55.7]} 13. Rab1 {[%clk 0:02:43.8]} 13... dxc4 {[%clk 0:02:53.6]} 14.
Qxc4 {[%clk 0:02:43.1]} 14... Bxe5 {[%clk 0:02:51.9]} 15. Bxe5 {[%clk
0:02:43.2]} 15... Qd5 {[%clk 0:02:50.1]} 16. Rfc1 {[%clk 0:02:43.3]} 16... Qxc4
{[%clk 0:02:49.6]} 17. Rxc4 {[%clk 0:02:44.2]} 17... Nd7 {[%clk 0:02:49.1]} 18.
Bg3 {[%clk 0:02:43]} 18... Rfc8 {[%clk 0:02:49.6]} 19. b4 {[%clk 0:02:41]} 19...
a6 {[%clk 0:02:46.1]} 20. a4 {[%clk 0:02:40.9]} 20... Nb6 {[%clk 0:02:46.3]} 21.
Rc2 {[%clk 0:02:37.7]} 21... Nxa4 {[%clk 0:02:46.4]} 22. h3 {[%clk 0:02:35]}
22... Nb6 {[%clk 0:02:46.1]} 23. f3 {[%clk 0:02:33]} 23... Kf8 {[%clk
0:02:44.6]} 24. e4 {[%clk 0:02:32.8]} 24... Ke8 {[%clk 0:02:41.5]} 25. Bf2
{[%clk 0:02:31.1]} 25... Nd7 {[%clk 0:02:40.2]} 26. Rbc1 {[%clk 0:02:30.9]}
26... Nf6 {[%clk 0:02:37.7]} 27. Bg3 {[%clk 0:02:25.7]} 27... Rd8 {[%clk
0:02:37.5]} 28. Rc4 {[%clk 0:02:21.7]} 28... Rd7 {[%clk 0:02:35.1]} 29. Be5
{[%clk 0:02:18.9]} 29... Rad8 {[%clk 0:02:34.8]} 30. g4 {[%clk 0:02:19.1]} 30...
Kf8 {[%clk 0:02:32.5]} 31. Kf2 {[%clk 0:02:16.6]} 31... Ne8 {[%clk 0:02:32.3]}
32. Ke3 {[%clk 0:02:12.7]} 32... f6 {[%clk 0:02:32.2]} 33. Bg3 {[%clk
0:02:09.7]} 33... Ke7 {[%clk 0:02:31]} 34. Rd1 {[%clk 0:02:03.5]} 34... Nd6
{[%clk 0:02:30.9]} 35. Rc3 {[%clk 0:02:00.1]} 35... Nb5 {[%clk 0:02:31.4]} 36.
Rcd3 {[%clk 0:02:00.6]} 36... Kf7 {[%clk 0:02:16.5]} 37. h4 {[%clk 0:02:00]}
37... g6 {[%clk 0:02:16.2]} 38. R1d2 {[%clk 0:01:57.8]} 38... Nd6 {[%clk
0:02:15.4]} 39. Rc2 {[%clk 0:01:56]} 39... Ke7 {[%clk 0:02:14.2]} 40. g5 {[%clk
0:01:53.1]} 40... f5 {[%clk 0:02:10.9]} 41. Be5 {[%clk 0:01:52.8]} 41... Kf7
{[%clk 0:02:03]} 42. Bf6 {[%clk 0:01:51.3]} 42... Re8 {[%clk 0:02:00.6]} 43. Rd1
{[%clk 0:01:50.8]} 43... Rc8 {[%clk 0:01:56.5]} 44. Rh1 {[%clk 0:01:48.5]} 44...
Ne8 {[%clk 0:01:56.6]} 45. Be5 {[%clk 0:01:48.2]} 45... Nd6 {[%clk 0:01:55.4]}
46. h5 {[%clk 0:01:47.6]} 46... Ke8 {[%clk 0:01:27.8]} 47. hxg6 {[%clk
0:01:31.7]} 47... hxg6 {[%clk 0:01:28.7]} 48. Rh8+ {[%clk 0:01:25.1]} 48... Kf7
{[%clk 0:01:24.1]} 49. Rh7+ {[%clk 0:01:25.4]} 49... Ke8 {[%clk 0:01:22]} 50.
Rh6 {[%clk 0:01:25.8]} 50... Nf7 {[%clk 0:01:19.8]} 51. Rxg6 {[%clk 0:01:25.1]}
51... Nxe5 {[%clk 0:01:18.8]} 52. Rg8+ {[%clk 0:01:24.1]} 52... Ke7 {[%clk
0:01:17.8]} 53. Rxc8 {[%clk 0:01:23]} 53... Ng6 {[%clk 0:01:14.4]} 54. e5 {[%clk
0:01:11.2]} 54... Nf8 {[%clk 0:01:04]} 55. Rh2 {[%clk 0:01:10]} 55... Kf7 {[%clk
0:01:01.9]} 56. Rh8 {[%clk 0:01:08.6]} 56... Ng6 {[%clk 0:00:58.8]} 57. Rh7#
{[%clk 0:01:08.5]} 1-0

[Event "Early-Titled-Tuesday-Blitz-May-28-2024"]
[Site "Chess.com"]
[Date "2024.05.28"]
[Round "1"]
[White "BashirliSaadat"]
[Black "RuperezA"]
[Result "0-1"]
[WhiteElo "2373"]
[BlackElo "2671"]
[TimeControl "180+1"]
[EndTime "8:06:31 PDT"]
[Termination "RuperezA won by resignation"]

1. d4 {[%clk 0:03:00.1]} 1... Nf6 {[%clk 0:02:59.1]} 2. e3 {[%clk 0:03:00.3]}
2... g6 {[%clk 0:02:57.7]} 3. f4 {[%clk 0:03:00.7]} 3... Bg7 {[%clk 0:02:58.6]}
4. Bd3 {[%clk 0:03:00.9]} 4... O-O {[%clk 0:02:59.5]} 5. Nf3 {[%clk 0:03:00.4]}
5... d6 {[%clk 0:03:00.4]} 6. O-O {[%clk 0:03:00.8]} 6... Nbd7 {[%clk
0:03:01.3]} 7. c3 {[%clk 0:03:01]} 7... b6 {[%clk 0:03:01.9]} 8. Qe2 {[%clk
0:03:00.6]} 8... Bb7 {[%clk 0:03:01.9]} 9. Nbd2 {[%clk 0:03:00.6]} 9... e5
{[%clk 0:02:57.3]} 10. e4 {[%clk 0:02:53.6]} 10... Re8 {[%clk 0:02:54.7]} 11.
fxe5 {[%clk 0:02:52.2]} 11... dxe5 {[%clk 0:02:55.6]} 12. d5 {[%clk 0:02:52.3]}
12... Nc5 {[%clk 0:02:51.2]} 13. Bc2 {[%clk 0:02:52.4]} 13... a5 {[%clk
0:02:44.6]} 14. b4 {[%clk 0:02:46.6]} 14... axb4 {[%clk 0:02:40.7]} 15. cxb4
{[%clk 0:02:46.3]} 15... Na6 {[%clk 0:02:41.4]} 16. Rb1 {[%clk 0:02:40]} 16...
Qe7 {[%clk 0:02:28.9]} 17. a3 {[%clk 0:02:37.9]} 17... Nb8 {[%clk 0:02:20.9]}
18. Nc4 {[%clk 0:02:34.3]} 18... Nfd7 {[%clk 0:02:14.8]} 19. Bb2 {[%clk
0:02:28.2]} 19... c6 {[%clk 0:02:03.8]} 20. dxc6 {[%clk 0:02:20.5]} 20... Nxc6
{[%clk 0:02:03.5]} 21. Rbd1 {[%clk 0:02:20.7]} 21... Nd4 {[%clk 0:01:58.2]} 22.
Nxd4 {[%clk 0:02:18]} 22... exd4 {[%clk 0:01:59.1]} 23. Bxd4 {[%clk 0:02:17.6]}
23... Bxd4+ {[%clk 0:01:59.5]} 24. Rxd4 {[%clk 0:02:17.2]} 24... Ba6 {[%clk
0:01:57.9]} 25. Qd2 {[%clk 0:02:12.5]} 25... Bxc4 {[%clk 0:01:50.6]} 26. Rxc4
{[%clk 0:02:12]} 26... Ne5 {[%clk 0:01:44.2]} 27. Rd4 {[%clk 0:02:11.7]} 27...
Rxa3 {[%clk 0:01:42.2]} 28. Rd5 {[%clk 0:02:02.6]} 28... Ra2 {[%clk 0:01:27.8]}
29. Qc3 {[%clk 0:01:49.8]} 29... Qg5 {[%clk 0:01:22.3]} 30. Qb3 {[%clk
0:01:40.6]} 30... Rea8 {[%clk 0:01:17.3]} 31. h4 {[%clk 0:01:24.5]} 31... Qe7
{[%clk 0:01:09.4]} 32. Rfd1 {[%clk 0:01:08.4]} 32... R8a3 {[%clk 0:01:02.1]} 33.
Qb1 {[%clk 0:00:56.4]} 33... Ng4 {[%clk 0:01:01.5]} 34. Bb3 {[%clk 0:00:50.2]}
34... Qxh4 {[%clk 0:00:55.5]} 35. Qxa2 {[%clk 0:00:27.4]} 35... Rxa2 {[%clk
0:00:54]} 36. Bxa2 {[%clk 0:00:27.2]} 36... Qf2+ {[%clk 0:00:54.9]} 37. Kh1
{[%clk 0:00:27]} 37... Qxa2 {[%clk 0:00:55.8]} 38. Rd8+ {[%clk 0:00:21.1]} 38...
Kg7 {[%clk 0:00:55.9]} 39. Kg1 {[%clk 0:00:20.2]} 39... Qf2+ {[%clk 0:00:55.5]}
40. Kh1 {[%clk 0:00:19.8]} 40... Qh4+ {[%clk 0:00:56.4]} 41. Kg1 {[%clk
0:00:19.6]} 41... Qh2+ {[%clk 0:00:57.3]} 42. Kf1 {[%clk 0:00:19.3]} 42... Ne3+
{[%clk 0:00:58.2]} 43. Ke2 {[%clk 0:00:20.1]} 43... Nxd1 {[%clk 0:00:59.1]} 0-1

[Event "Early-Titled-Tuesday-Blitz-May-28-2024"]
[Site "Chess.com"]
[Date "2024.05.28"]
[Round "1"]
[White "jens1102"]
[Black "Quattroporte300"]
[Result "1-0"]
[WhiteElo "2717"]
[BlackElo "2393"]
[TimeControl "180+1"]
[EndTime "8:06:37 PDT"]
[Termination "jens1102 won on time"]

1. e4 {[%clk 0:02:59.8]} 1... c5 {[%clk 0:02:59]} 2. Nf3 {[%clk 0:03:00.2]} 2...
d6 {[%clk 0:02:58.2]} 3. d4 {[%clk 0:03:00.3]} 3... cxd4 {[%clk 0:02:57.1]} 4.
Qxd4 {[%clk 0:03:00.7]} 4... a6 {[%clk 0:02:55.5]} 5. c4 {[%clk 0:03:00.6]} 5...
Nc6 {[%clk 0:02:53.3]} 6. Qe3 {[%clk 0:03:00.9]} 6... Nf6 {[%clk 0:02:53.5]} 7.
Nc3 {[%clk 0:03:00.6]} 7... g6 {[%clk 0:02:53.1]} 8. Be2 {[%clk 0:02:59.8]} 8...
Bg7 {[%clk 0:02:53.5]} 9. O-O {[%clk 0:03:00.5]} 9... O-O {[%clk 0:02:53.6]} 10.
Rd1 {[%clk 0:03:01.2]} 10... Bd7 {[%clk 0:02:48]} 11. h3 {[%clk 0:02:56.1]}
11... Rc8 {[%clk 0:02:47.1]} 12. e5 {[%clk 0:02:41.5]} 12... dxe5 {[%clk
0:02:42.2]} 13. Nxe5 {[%clk 0:02:42.4]} 13... Nxe5 {[%clk 0:02:38.2]} 14. Qxe5
{[%clk 0:02:43.3]} 14... Re8 {[%clk 0:02:02.7]} 15. Bf3 {[%clk 0:02:32.7]} 15...
Qc7 {[%clk 0:01:57.7]} 16. Qxc7 {[%clk 0:02:23.2]} 16... Rxc7 {[%clk 0:01:58.6]}
17. Bg5 {[%clk 0:02:13.7]} 17... Bc6 {[%clk 0:01:46.2]} 18. Nd5 {[%clk
0:01:39.4]} 18... Bxd5 {[%clk 0:01:17.6]} 19. cxd5 {[%clk 0:01:35.3]} 19... Rd7
{[%clk 0:01:17.7]} 20. Rac1 {[%clk 0:01:31.9]} 20... h6 {[%clk 0:01:16.1]} 21.
Be3 {[%clk 0:01:28.3]} 21... Red8 {[%clk 0:00:36.3]} 22. Bb6 {[%clk 0:01:27.9]}
22... Re8 {[%clk 0:00:36.8]} 23. a4 {[%clk 0:01:28.2]} 23... Nh7 {[%clk
0:00:33]} 24. b4 {[%clk 0:01:27.8]} 24... Ng5 {[%clk 0:00:32.7]} 25. a5 {[%clk
0:01:25.4]} 25... Nxf3+ {[%clk 0:00:31.6]} 26. gxf3 {[%clk 0:01:26.3]} 26... Be5
{[%clk 0:00:27.8]} 27. Rc4 {[%clk 0:01:25.8]} 27... e6 {[%clk 0:00:21.3]} 28. f4
{[%clk 0:01:19.9]} 28... Bb8 {[%clk 0:00:17]} 29. Rcd4 {[%clk 0:01:17.2]} 29...
exd5 {[%clk 0:00:12.5]} 30. Rxd5 {[%clk 0:01:18.1]} 30... Rxd5 {[%clk
0:00:13.1]} 31. Rxd5 {[%clk 0:01:19]} 31... Bxf4 {[%clk 0:00:13.5]} 32. Rd7
{[%clk 0:01:19.8]} 32... Re4 {[%clk 0:00:08]} 33. Rxb7 {[%clk 0:01:19.9]} 33...
Rxb4 {[%clk 0:00:08.6]} 34. Ra7 {[%clk 0:01:20.4]} 34... Ra4 {[%clk 0:00:04.7]}
35. Ra8+ {[%clk 0:01:20.5]} 35... Kh7 {[%clk 0:00:04.4]} 36. Rxa6 {[%clk
0:01:21.1]} 36... Ra2 {[%clk 0:00:03.3]} 37. Ra8 {[%clk 0:01:20.6]} 37... h5
{[%clk 0:00:03]} 38. a6 {[%clk 0:01:21]} 38... g5 {[%clk 0:00:02.8]} 39. a7
{[%clk 0:01:21.3]} 39... g4 {[%clk 0:00:03.4]} 40. Bd4 {[%clk 0:01:21.6]} 40...
gxh3 {[%clk 0:00:02.4]} 41. Rh8+ {[%clk 0:01:21.1]} 41... Kg6 {[%clk 0:00:02.2]}
42. a8=Q {[%clk 0:01:22]} 42... Rxa8 {[%clk 0:00:02]} 43. Rxa8 {[%clk
0:01:21.8]} 43... Kf5 {[%clk 0:00:02.4]} 44. Rg8 {[%clk 0:01:19.7]} 1-0

[Event "Early-Titled-Tuesday-Blitz-May-28-2024"]
[Site "Chess.com"]
[Date "2024.05.28"]
[Round "1"]
[White "twofoxniel"]
[Black "laskakid"]
[Result "1-0"]
[WhiteElo "2671"]
[BlackElo "2371"]
[TimeControl "180+1"]
[EndTime "8:06:40 PDT"]
[Termination "twofoxniel won on time"]

1. e4 {[%clk 0:02:57.3]} 1... d6 {[%clk 0:03:00]} 2. d4 {[%clk 0:02:56.4]} 2...
Nf6 {[%clk 0:03:00]} 3. Nc3 {[%clk 0:02:57]} 3... e5 {[%clk 0:02:59.7]} 4. Nf3
{[%clk 0:02:56.6]} 4... Nbd7 {[%clk 0:02:59.3]} 5. Bc4 {[%clk 0:02:56.3]} 5...
Be7 {[%clk 0:02:59.5]} 6. O-O {[%clk 0:02:54.9]} 6... O-O {[%clk 0:02:59.6]} 7.
a4 {[%clk 0:02:54.2]} 7... c6 {[%clk 0:02:58.3]} 8. Re1 {[%clk 0:02:53.1]} 8...
h6 {[%clk 0:02:57.7]} 9. h3 {[%clk 0:02:50.6]} 9... Re8 {[%clk 0:02:57.7]} 10.
a5 {[%clk 0:02:45.6]} 10... Qc7 {[%clk 0:02:57.2]} 11. Bd3 {[%clk 0:02:34]}
11... Rb8 {[%clk 0:02:47.7]} 12. Be3 {[%clk 0:02:31.7]} 12... b5 {[%clk
0:02:44.5]} 13. axb6 {[%clk 0:02:30.7]} 13... axb6 {[%clk 0:02:44.6]} 14. Ne2
{[%clk 0:02:19.2]} 14... exd4 {[%clk 0:02:33.4]} 15. Nfxd4 {[%clk 0:02:09.9]}
15... Bf8 {[%clk 0:02:28.4]} 16. Ng3 {[%clk 0:02:08.5]} 16... Nc5 {[%clk
0:02:24.4]} 17. Qf3 {[%clk 0:01:59]} 17... Nxd3 {[%clk 0:02:07.7]} 18. cxd3
{[%clk 0:01:58.8]} 18... Nh7 {[%clk 0:01:26.3]} 19. Ndf5 {[%clk 0:01:54.6]}
19... Be6 {[%clk 0:01:14.5]} 20. Nh5 {[%clk 0:01:39.1]} 20... Bxf5 {[%clk
0:01:02.7]} 21. exf5 {[%clk 0:01:39.2]} 21... Ng5 {[%clk 0:00:50.8]} 22. Qg4
{[%clk 0:01:34.8]} 22... d5 {[%clk 0:00:40.2]} 23. h4 {[%clk 0:01:32]} 23... Nh7
{[%clk 0:00:35.1]} 24. Bf4 {[%clk 0:01:27.8]} 24... Qd7 {[%clk 0:00:16.4]} 25.
Bxh6 {[%clk 0:01:12.6]} 25... f6 {[%clk 0:00:14.4]} 26. Bf4 {[%clk 0:01:07]}
26... Ra8 {[%clk 0:00:12.6]} 27. Rxa8 {[%clk 0:01:02.7]} 27... Rxa8 {[%clk
0:00:12.7]} 28. Re6 {[%clk 0:01:01.6]} 28... Kh8 {[%clk 0:00:11.8]} 29. Bg3
{[%clk 0:00:57]} 29... Qf7 {[%clk 0:00:11.1]} 30. Nf4 {[%clk 0:00:57]} 30...
Ra1+ {[%clk 0:00:09.1]} 31. Kh2 {[%clk 0:00:56.9]} 31... Kg8 {[%clk 0:00:07.9]}
32. Ng6 {[%clk 0:00:56.9]} 32... Bc5 {[%clk 0:00:07.7]} 33. Rxc6 {[%clk
0:00:55.5]} 33... Rc1 {[%clk 0:00:06.4]} 34. Rc8+ {[%clk 0:00:55]} 34... Nf8
{[%clk 0:00:06]} 35. Nxf8 {[%clk 0:00:53.1]} 35... Bxf8 {[%clk 0:00:05.5]} 36.
Rxc1 {[%clk 0:00:52.3]} 1-0

[Event "Early-Titled-Tuesday-Blitz-May-28-2024"]
[Site "Chess.com"]
[Date "2024.05.28"]
[Round "1"]
[White "Chernov_Alexander_A"]
[Black "edgarhay012"]
[Result "0-1"]
[WhiteElo "2295"]
[BlackElo "2613"]
[TimeControl "180+1"]
[EndTime "8:06:40 PDT"]
[Termination "edgarhay012 won on time"]

1. d4 {[%clk 0:02:57]} 1... Nf6 {[%clk 0:02:42]} 2. Nf3 {[%clk 0:02:55.7]} 2...
b6 {[%clk 0:02:38.7]} 3. Nc3 {[%clk 0:02:45.6]} 3... Bb7 {[%clk 0:02:38.2]} 4.
Bg5 {[%clk 0:02:44.9]} 4... d5 {[%clk 0:02:37.5]} 5. Ne5 {[%clk 0:02:43.6]} 5...
h6 {[%clk 0:02:33]} 6. Bh4 {[%clk 0:02:43]} 6... e6 {[%clk 0:02:24.4]} 7. e3
{[%clk 0:02:42.2]} 7... Be7 {[%clk 0:02:20.2]} 8. f4 {[%clk 0:02:37.7]} 8... a6
{[%clk 0:02:04.4]} 9. Qf3 {[%clk 0:02:15.1]} 9... c5 {[%clk 0:02:02.8]} 10. f5
{[%clk 0:02:09.4]} 10... Qc8 {[%clk 0:01:58]} 11. Bd3 {[%clk 0:01:51.8]} 11...
c4 {[%clk 0:01:49.4]} 12. fxe6 {[%clk 0:01:51.2]} 12... Qxe6 {[%clk 0:01:34.4]}
13. Bf5 {[%clk 0:01:50.1]} 13... Qd6 {[%clk 0:01:34.9]} 14. Bg3 {[%clk
0:01:06.6]} 14... Qb4 {[%clk 0:01:23.3]} 15. O-O-O {[%clk 0:00:57.4]} 15... O-O
{[%clk 0:01:18.6]} 16. Be1 {[%clk 0:00:33.1]} 16... Qd6 {[%clk 0:01:15.6]} 17.
g4 {[%clk 0:00:32.5]} 17... b5 {[%clk 0:00:58.6]} 18. h4 {[%clk 0:00:30]} 18...
b4 {[%clk 0:00:52.2]} 19. Na4 {[%clk 0:00:27.4]} 19... Ne4 {[%clk 0:00:46.7]}
20. g5 {[%clk 0:00:23.4]} 20... Nc6 {[%clk 0:00:34]} 21. gxh6 {[%clk 0:00:21.9]}
21... Qxh6 {[%clk 0:00:27.1]} 22. Nb6 {[%clk 0:00:12]} 22... Nxe5 {[%clk
0:00:26.3]} 23. dxe5 {[%clk 0:00:10.8]} 23... Qxb6 {[%clk 0:00:26.3]} 0-1

[Event "Early-Titled-Tuesday-Blitz-May-28-2024"]
[Site "Chess.com"]
[Date "2024.05.28"]
[Round "1"]
[White "lachesisQ"]
[Black "noblerone"]
[Result "1-0"]
[WhiteElo "3100"]
[BlackElo "2546"]
[TimeControl "180+1"]
[EndTime "8:06:41 PDT"]
[Termination "lachesisQ won by resignation"]

1. e4 {[%clk 0:03:00.9]} 1... c5 {[%clk 0:02:59.1]} 2. Nf3 {[%clk 0:03:00.6]}
2... e6 {[%clk 0:02:59.3]} 3. d4 {[%clk 0:03:00.6]} 3... cxd4 {[%clk 0:02:59.8]}
4. Nxd4 {[%clk 0:03:01.5]} 4... Qb6 {[%clk 0:02:59.7]} 5. Nb3 {[%clk 0:02:57.7]}
5... Qc7 {[%clk 0:02:59.4]} 6. Nc3 {[%clk 0:02:57.3]} 6... a6 {[%clk 0:02:59.5]}
7. g3 {[%clk 0:02:57.3]} 7... b5 {[%clk 0:02:58.9]} 8. Bg2 {[%clk 0:02:57.3]}
8... Bb7 {[%clk 0:02:59.4]} 9. O-O {[%clk 0:02:57]} 9... d6 {[%clk 0:02:58.3]}
10. a4 {[%clk 0:02:56.5]} 10... b4 {[%clk 0:02:58]} 11. Na2 {[%clk 0:02:55.7]}
11... Nc6 {[%clk 0:02:51.1]} 12. Bd2 {[%clk 0:02:45.6]} 12... Qb6 {[%clk
0:02:20.1]} 13. a5 {[%clk 0:02:43]} 13... Nxa5 {[%clk 0:02:18.8]} 14. Nxa5
{[%clk 0:02:42.5]} 14... Qxa5 {[%clk 0:02:19.7]} 15. Nxb4 {[%clk 0:02:39.7]}
15... Qc7 {[%clk 0:02:13.6]} 16. Qe2 {[%clk 0:02:39.6]} 16... a5 {[%clk
0:02:07.2]} 17. Qb5+ {[%clk 0:02:38.9]} 17... Qd7 {[%clk 0:01:58.4]} 18. Rxa5
{[%clk 0:02:38.3]} 18... Qxb5 {[%clk 0:01:49.9]} 19. Rxb5 {[%clk 0:02:39.2]}
19... Bc8 {[%clk 0:01:42.9]} 20. Rd1 {[%clk 0:02:26.5]} 20... Be7 {[%clk
0:01:41.8]} 21. Bf4 {[%clk 0:02:19.5]} 21... Bd7 {[%clk 0:01:38.8]} 22. Rb6
{[%clk 0:02:16.6]} 22... e5 {[%clk 0:01:38.7]} 23. Be3 {[%clk 0:01:45]} 23...
Nf6 {[%clk 0:01:38]} 24. Bg5 {[%clk 0:01:45]} 24... Be6 {[%clk 0:01:34.9]} 25.
Bxf6 {[%clk 0:01:43.8]} 25... Bxf6 {[%clk 0:01:35.8]} 26. Rbxd6 {[%clk
0:01:40.4]} 26... Be7 {[%clk 0:01:29.8]} 27. Rb6 {[%clk 0:01:40]} 27... O-O
{[%clk 0:01:21.8]} 28. Nc6 {[%clk 0:01:38.8]} 28... Bf6 {[%clk 0:01:13.9]} 29.
Bf1 {[%clk 0:01:28.1]} 29... h5 {[%clk 0:01:08.7]} 30. h4 {[%clk 0:01:23.8]}
30... Rfc8 {[%clk 0:01:03]} 31. Ba6 {[%clk 0:01:21.9]} 31... Rc7 {[%clk
0:01:02]} 32. b4 {[%clk 0:01:21.6]} 32... Bg4 {[%clk 0:00:57.6]} 33. Re1 {[%clk
0:01:19.1]} 33... g5 {[%clk 0:00:54.6]} 34. hxg5 {[%clk 0:01:18.5]} 34... Bxg5
{[%clk 0:00:55.5]} 35. Bd3 {[%clk 0:01:05.7]} 35... f6 {[%clk 0:00:51.7]} 36. b5
{[%clk 0:00:58.9]} 36... Bf3 {[%clk 0:00:48.9]} 37. Rb1 {[%clk 0:00:56.4]} 37...
Kg7 {[%clk 0:00:45.1]} 38. Rb8 {[%clk 0:00:44.8]} 38... Ra3 {[%clk 0:00:24.8]}
39. b6 {[%clk 0:00:41.7]} 39... Rxc6 {[%clk 0:00:24.4]} 40. b7 {[%clk
0:00:42.2]} 40... Rb6 {[%clk 0:00:23.5]} 41. Rxb6 {[%clk 0:00:40.8]} 41... Ra1+
{[%clk 0:00:23.6]} 42. Bf1 {[%clk 0:00:41.4]} 1-0

[Event "Early-Titled-Tuesday-Blitz-May-28-2024"]
[Site "Chess.com"]
[Date "2024.05.28"]
[Round "1"]
[White "Maluco_do_Natal_00"]
[Black "Vesper2018"]
[Result "0-1"]
[WhiteElo "2036"]
[BlackElo "2563"]
[TimeControl "180+1"]
[EndTime "8:06:41 PDT"]
[Termination "Vesper2018 won by resignation"]

1. e4 {[%clk 0:02:58.1]} 1... c5 {[%clk 0:02:59.5]} 2. Nf3 {[%clk 0:02:58.1]}
2... d6 {[%clk 0:02:59.7]} 3. d4 {[%clk 0:02:58.8]} 3... cxd4 {[%clk 0:02:59.7]}
4. Nxd4 {[%clk 0:02:59.7]} 4... Nf6 {[%clk 0:03:00.1]} 5. Nc3 {[%clk 0:03:00.3]}
5... a6 {[%clk 0:03:00.1]} 6. Be3 {[%clk 0:03:00.5]} 6... e5 {[%clk 0:03:00]} 7.
Nb3 {[%clk 0:03:01.1]} 7... Be7 {[%clk 0:03:00.2]} 8. f3 {[%clk 0:03:00.8]} 8...
Be6 {[%clk 0:03:00.3]} 9. Qd2 {[%clk 0:03:01.2]} 9... O-O {[%clk 0:03:00.1]} 10.
O-O-O {[%clk 0:03:00.3]} 10... b5 {[%clk 0:03:00.7]} 11. g4 {[%clk 0:03:00.4]}
11... Nbd7 {[%clk 0:02:59.4]} 12. g5 {[%clk 0:02:59.7]} 12... Nh5 {[%clk
0:02:59.6]} 13. Nd5 {[%clk 0:02:54.3]} 13... Bxd5 {[%clk 0:02:55.5]} 14. exd5
{[%clk 0:02:55.2]} 14... f5 {[%clk 0:02:33.6]} 15. Kb1 {[%clk 0:02:06.1]} 15...
f4 {[%clk 0:02:15.2]} 16. Bf2 {[%clk 0:02:05.9]} 16... Bxg5 {[%clk 0:02:15.1]}
17. Rg1 {[%clk 0:02:02.3]} 17... e4 {[%clk 0:01:58]} 18. fxe4 {[%clk 0:01:55.8]}
18... Ne5 {[%clk 0:01:57.7]} 19. Nd4 {[%clk 0:01:51.4]} 19... Bh6 {[%clk
0:01:39.1]} 20. Bh3 {[%clk 0:01:24.7]} 20... Qe8 {[%clk 0:01:30.2]} 21. Ne6
{[%clk 0:01:04.8]} 21... Rf7 {[%clk 0:01:09.9]} 22. Qe2 {[%clk 0:00:59.3]} 22...
f3 {[%clk 0:01:07.7]} 23. Qe1 {[%clk 0:00:47]} 23... Kh8 {[%clk 0:01:07.1]} 24.
Bg4 {[%clk 0:00:27.3]} 24... Nf4 {[%clk 0:01:06.6]} 25. Bg3 {[%clk 0:00:11.6]}
25... Nxg4 {[%clk 0:01:00.3]} 26. Bxf4 {[%clk 0:00:10.1]} 26... f2 {[%clk
0:01:00.4]} 27. Qd2 {[%clk 0:00:05.1]} 27... fxg1=Q {[%clk 0:00:59]} 28. Rxg1
{[%clk 0:00:04.3]} 28... Bxf4 {[%clk 0:00:58.3]} 29. Nxf4 {[%clk 0:00:04.1]}
29... Ne5 {[%clk 0:00:57.4]} 30. Ne6 {[%clk 0:00:02.9]} 30... Qe7 {[%clk
0:00:54.7]} 31. b3 {[%clk 0:00:02.6]} 31... Nf3 {[%clk 0:00:53.1]} 32. Qg2
{[%clk 0:00:00.9]} 32... Nxg1 {[%clk 0:00:52]} 33. Qxg1 {[%clk 0:00:01]} 33...
Rf6 {[%clk 0:00:51.3]} 34. Qg3 {[%clk 0:00:01.3]} 34... Rxe6 {[%clk 0:00:50.3]}
35. dxe6 {[%clk 0:00:02.2]} 35... Qxe6 {[%clk 0:00:50.9]} 0-1